bitfinex-derivatives/quotes_BTCF0:USTF0_20250309
["timestamp","ask_amount","ask_price","bid_price","bid_amount"]
[1741543253928,0.2212218,82500.0,82499.0,0.1212232]
[1741543254123,0.1,82500.0,82499.0,0.1212232]
[1741543255328,0.2212218,82500.0,82499.0,0.1212232]
[1741543256424,0.2212218,82500.0,82499.0,0.2352632]
[1741543256620,0.1,82500.0,82499.0,0.2352632]
[1741543256825,0.6028997,82517.0,82516.0,0.1211983]
[1741543257033,0.1814985,82517.0,82516.0,0.1211983]
[1741543257426,0.3071943,82519.0,82518.0,0.1211953]
[1741543257626,0.1817943,82519.0,82518.0,0.1211953]
[1741543258333,0.0605907,82528.0,82518.0,0.1211953]
[1741543258334,0.126,82521.0,82520.0,0.1211924]
[1741543258633,0.00181861,82534.0,82521.0,0.0605954]
[1741543258934,0.00181861,82534.0,82533.0,0.1211733]
[1741543259231,0.1211762,82531.0,82530.0,0.0605887]
[1741543259630,0.2471756,82533.0,82532.0,0.1211748]
[1741543260630,0.00181861,82534.0,82533.0,0.1211733]
[1741543261024,0.0605833,82538.0,82533.0,0.1182]
[1741543261228,0.2470674,82537.0,82536.0,0.1211689]
[1741543261532,0.135591,82545.0,82536.0,0.0177194]
[1741543261732,0.2351572,82544.0,82543.0,0.1211586]
[1741543261931,0.1211601,82542.0,82541.0,0.1817411]
[1741543262131,0.1211601,82542.0,82541.0,0.0605801]
[1741543262545,0.1211601,82542.0,82538.0,0.12]
[1741543262546,0.1817393,82545.0,82544.0,0.1211542]
[1741543262725,0.1817393,82545.0,82540.0,0.12]
[1741543262726,0.1211616,82541.0,82540.0,0.12]
[1741543263138,0.1173,82542.0,82518.0,0.00903782]
[1741543263447,0.1173,82542.0,82526.0,0.2411836]
[1741543263448,0.1211821,82527.0,82526.0,0.2411836]
[1741543263633,0.1211799,82529.0,82528.0,0.1211792]
[1741543264033,0.2475799,82529.0,82528.0,0.1211792]
[1741543264233,0.1211821,82527.0,82526.0,0.2391]
[1741543264434,0.1211821,82527.0,82526.0,0.3602836]
[1741543264642,0.07862257,82533.0,82526.0,0.3602836]
[1741543264643,0.00076,82550.0,82526.0,0.2391]
[1741543264933,0.3608,82555.0,82531.0,0.3608]
[1741543264934,0.1264,82541.0,82531.0,0.3608]
[1741543265135,0.1211733,82533.0,82532.0,0.2415]
[1741543265340,0.1211733,82533.0,82532.0,0.1224]
[1741543265840,0.1211733,82533.0,82525.0,0.00018182]
[1741543265841,0.1211836,82526.0,82525.0,0.00018182]
[1741543266240,0.13904521,82526.0,82525.0,2e-08]
[1741543266430,0.1211997,82515.0,82508.0,0.5722135]
[1741543266633,0.5959597,82515.0,82512.0,0.1212027]
[1741543266832,0.5959597,82515.0,82508.0,0.5733335]
[1741543267037,0.5959597,82515.0,82509.0,0.1212]
[1741543267336,0.5959597,82515.0,82508.0,0.5733335]
[1741543267739,0.5959597,82515.0,82509.0,0.1212]
[1741543268137,0.5959597,82515.0,82510.0,0.00919387]
[1741543268638,0.1212056,82511.0,82510.0,0.1212051]
[1741543269032,0.3533056,82511.0,82510.0,0.1212051]
[1741543269228,0.3608,82515.0,82514.0,0.1212012]
[1741543269432,0.22816,82522.0,82508.0,0.1226]
[1741543269639,0.0606026,82513.0,82509.0,0.11396]
[1741543269939,0.1212085,82509.0,82508.0,0.00901248]
[1741543270139,0.1212085,82509.0,82507.0,0.21664902]
[1741543270140,0.12121,82508.0,82507.0,0.33786052]
[1741543270446,0.3608,82509.0,82508.0,0.12121]
[1741543270644,0.4820085,82509.0,82508.0,0.1233]
[1741543270941,0.12121,82508.0,82507.0,0.21664902]
[1741543271241,0.37894285,82508.0,82507.0,0.21664902]
[1741543271441,0.36061,82508.0,82507.0,0.21664902]
[1741543271739,0.36061,82508.0,82507.0,0.18047032]
[1741543272138,0.2394,82508.0,82486.0,0.1233]
[1741543272445,0.1212468,82483.0,82482.0,0.30377032]
[1741543272645,0.1212468,82483.0,82482.0,0.18047032]
[1741543273141,0.1202468,82483.0,82482.0,0.18047032]
[1741543273330,0.3580468,82483.0,82482.0,0.18047032]
[1741543273535,0.1212482,82482.0,82476.0,0.28886537]
[1741543273941,0.3590482,82482.0,82476.0,0.28886537]
[1741543274338,0.3590482,82482.0,82478.0,0.1212531]
[1741543274637,0.3590482,82482.0,82476.0,0.28886537]
[1741543275041,0.1212556,82477.0,82476.0,0.19425518]
[1741543275239,0.2352156,82477.0,82476.0,0.19425518]
[1741543275645,0.1212585,82475.0,82474.0,0.00018182]
[1741543275836,0.4820585,82475.0,82474.0,0.00018182]
[1741543276342,0.71481367,82475.0,82474.0,0.00018182]
[1741543277945,0.3608,82475.0,82474.0,0.12144182]
[1741543278148,0.4820585,82475.0,82474.0,0.00018182]
[1741543278344,0.12126,82474.0,82473.0,2e-08]
[1741543278553,0.1212894,82454.0,82453.0,0.31055518]
[1741543278747,0.1212894,82454.0,82453.0,0.19425518]
[1741543279149,0.3608,82459.0,82457.0,0.1212835]
[1741543279455,0.11396,82470.0,82467.0,0.0606345]
[1741543279754,0.1212894,82454.0,82453.0,0.19425518]
[1741543279948,0.1212938,82451.0,82450.0,0.00018182]
[1741543280138,0.1212938,82451.0,82450.0,0.12147712]
[1741543280340,0.1212938,82451.0,82450.0,0.00018182]
[1741543280549,0.4820938,82451.0,82450.0,0.00018182]
[1741543280752,0.50063623,82451.0,82450.0,2e-08]
[1741543281048,0.50063623,82451.0,82419.0,0.0606701]
[1741543281049,0.1213247,82430.0,82421.0,0.11396]
[1741543281351,0.4821247,82430.0,82421.0,0.11396]
[1741543281539,0.4821247,82430.0,82422.0,0.1224]
[1741543281849,0.4821247,82430.0,82426.0,0.04852]
[1741543282152,0.7283247,82430.0,82426.0,0.04852]
[1741543282546,0.7464038,82430.0,82426.0,0.04852]
[1741543282744,0.7464038,82430.0,82429.0,0.36408171]
[1741543283657,0.75551248,82430.0,82429.0,0.36408171]
[1741543284952,0.75551248,82430.0,82429.0,0.003]
[1741543285756,0.75551248,82430.0,82402.0,0.21352]
[1741543285757,0.1213645,82403.0,82402.0,0.21352]
[1741543285956,0.1213674,82401.0,82397.0,0.11396]
[1741543286142,0.1213674,82401.0,82392.0,0.47588]
[1741543286349,0.1213674,82401.0,82392.0,0.47476]
[1741543286851,0.50025801,82401.0,82384.0,0.11396]
[1741543287051,0.50025801,82401.0,82392.0,0.00018195]
[1741543287353,0.50025801,82401.0,82373.0,0.72188171]
[1741543287354,0.1214072,82374.0,82373.0,0.72188171]
[1741543287557,0.11396,82381.0,82373.0,0.72188171]
[1741543287765,0.11396,82386.0,82374.0,0.0607036]
[1741543287960,0.11396,82386.0,82373.0,0.72308171]
[1741543288156,0.1164072,82374.0,82373.0,0.84329041]
[1741543288752,0.1164072,82374.0,82373.0,0.95658171]
[1741543288950,0.11396,82378.0,82373.0,0.95658171]
[1741543289152,0.00018207,82382.0,82381.0,0.1213969]
[1741543289349,7e-08,82382.0,82381.0,0.4821969]
[1741543289654,0.182065,82397.0,82396.0,0.1213724]
[1741543289859,0.060687,82397.0,82396.0,0.1213724]
[1741543290057,0.0606923,82390.0,82389.0,0.1213842]
[1741543290260,0.1820742,82392.0,82391.0,0.1213769]
[1741543290564,0.0606938,82388.0,82387.0,0.1213874]
[1741543290759,0.3608,82393.0,82392.0,0.1213807]
[1741543290950,0.12155097,82400.0,82399.0,0.1213704]
[1741543291154,0.1213836,82390.0,82389.0,0.3608]
[1741543291358,0.1213851,82389.0,82388.0,0.2392866]
[1741543291555,0.1213841,82390.0,82389.0,0.060692]
[1741543291761,0.1198,82399.0,82389.0,0.060692]
[1741543291762,0.00064,82417.0,82399.0,0.1213704]
[1741543292062,0.182069,82397.0,82396.0,0.1213735]
[1741543292454,0.1213708,82399.0,82398.0,0.1213704]
[1741543292658,0.1213708,82399.0,82398.0,0.2392704]
[1741543292972,0.00064,82412.0,82411.0,0.1213527]
[1741543293273,0.00064,82428.0,82427.0,0.1213291]
[1741543293475,0.1213218,82432.0,82431.0,0.1213232]
[1741543293768,0.121338,82421.0,82420.0,0.114]
[1741543293968,0.2384212,82433.0,82432.0,0.1213218]
[1741543294171,0.3608,82436.0,82420.0,0.114]
[1741543294370,0.0606609,82432.0,82428.0,0.0606625]
[1741543294668,0.3608,82436.0,82434.0,0.1213174]
[1741543294669,0.1213187,82435.0,82434.0,0.1213174]
[1741543295172,0.1213187,82435.0,82428.0,0.114]
[1741543295173,0.1213262,82429.0,82428.0,0.2353247]
[1741543295373,0.1213262,82429.0,82428.0,0.2353277]
[1741543296161,0.004,82435.0,82434.0,0.1213188]
[1741543296472,0.21368,82463.0,82434.0,0.1213188]
[1741543296473,0.18376327,82453.0,82452.0,0.1212923]
[1741543296673,0.00182047,82453.0,82448.0,0.114]
[1741543296864,0.1212968,82449.0,82448.0,0.114]
[1741543297068,0.4820968,82449.0,82448.0,0.114]
[1741543297266,0.1213115,82439.0,82438.0,0.11396]
[1741543297466,0.1213115,82439.0,82438.0,0.2352729]
[1741543297972,0.3608,82442.0,82430.0,0.00018195]
[1741543298277,0.1819791,82437.0,82436.0,0.1213115]
[1741543298477,0.1819612,82446.0,82445.0,0.1213012]
[1741543298774,0.11578047,82453.0,82436.0,0.0606578]
[1741543298775,0.1213159,82437.0,82436.0,0.1213093]
[1741543299575,0.1213159,82437.0,82435.0,0.11396]
[1741543299576,0.3608,82451.0,82446.0,0.1213012]
[1741543299872,0.59291243,82460.0,82441.0,0.3608]
[1741543300074,0.0606491,82448.0,82435.0,0.11396]
[1741543300273,0.1208,82447.0,82435.0,0.11396]
[1741543300475,0.92870715,82460.0,82449.0,0.1212938]
[1741543300476,0.0606481,82450.0,82449.0,0.1212938]
[1741543300976,0.00182047,82453.0,82451.0,0.1212923]
[1741543301276,0.01806378,82476.0,82475.0,0.1212585]
[1741543301462,0.1212615,82473.0,82472.0,0.3608]
[1741543301871,0.1212865,82456.0,82455.0,0.11396]
[1741543302175,0.1212909,82453.0,82452.0,0.4820861]
[1741543302377,0.1212909,82453.0,82452.0,0.6033757]
[1741543302568,0.1212909,82453.0,82452.0,0.3608]
[1741543302875,0.1213144,82437.0,82436.0,0.11396]
[1741543303173,0.02003663,82453.0,82432.0,0.0606608]
[1741543303174,0.0606606,82433.0,82432.0,0.2426311]
[1741543303366,0.11396,82449.0,82430.0,0.3276]
[1741543303571,0.1165,82448.0,82438.0,0.3608]
[1741543303876,0.1213115,82439.0,82438.0,0.3608]
[1741543304075,0.1213115,82439.0,82438.0,0.4821129]
[1741543304278,0.1213115,82439.0,82438.0,0.3608]
[1741543304862,0.1213115,82439.0,82438.0,0.4821129]
[1741543305279,0.11668152,82441.0,82438.0,0.3608]
[1741543305468,0.12149002,82441.0,82440.0,0.12131]
[1741543305773,0.1213115,82439.0,82438.0,0.3608]
[1741543306571,0.1213232,82431.0,82430.0,0.3349647]
[1741543306875,0.0606561,82439.0,82438.0,0.1213115]
[1741543307076,0.00018152,82441.0,82440.0,0.12131]
[1741543307471,0.12149002,82441.0,82440.0,0.12131]
[1741543307768,0.1213069,82447.0,82446.0,0.1819434]
[1741543307968,0.11392,82448.0,82431.0,0.11392]
[1741543308176,0.0986718,82432.0,82431.0,0.3565581]
[1741543308367,0.1213232,82431.0,82430.0,0.21364]
[1741543308567,0.1213232,82431.0,82430.0,0.3349647]
[1741543308779,0.1213232,82431.0,82430.0,0.21364]
[1741543309279,0.1213232,82431.0,82428.0,0.54297165]
[1741543309280,0.1213262,82429.0,82428.0,0.00018195]
[1741543309469,0.2352462,82429.0,82428.0,0.00018195]
[1741543310071,0.1213497,82413.0,82412.0,0.21364]
[1741543310382,0.02085434,82431.0,82400.0,0.1173]
[1741543310383,0.1213556,82409.0,82408.0,0.0606779]
[1741543310680,0.1213586,82407.0,82406.0,0.48216]
[1741543310879,0.1213586,82407.0,82406.0,0.3608]
[1741543311275,0.12529039,82407.0,82406.0,0.48216]
[1741543311476,0.1213645,82403.0,82402.0,0.2462659]
[1741543311881,0.12529629,82403.0,82402.0,0.2462659]
[1741543312078,0.12529629,82403.0,82402.0,0.1249]
[1741543312583,0.36473179,82403.0,82399.0,0.1195]
[1741543312786,0.1213689,82400.0,82399.0,0.1195]
[1741543312981,0.12530069,82400.0,82399.0,0.1195]
[1741543313486,0.36473179,82400.0,82398.0,0.00018195]
[1741543313678,0.3192704,82399.0,82385.0,0.1195]
[1741543313982,0.3192704,82399.0,82385.0,0.240891]
[1741543313983,0.1213895,82386.0,82385.0,0.240891]
[1741543314172,0.1213895,82386.0,82385.0,0.02837922]
[1741543314489,0.12532129,82386.0,82385.0,0.02837922]
[1741543314672,0.1322246,82386.0,82381.0,0.1218]
[1741543314878,0.1213954,82382.0,82381.0,0.2431936]
[1741543315076,0.1213954,82382.0,82381.0,0.1218]
[1741543315480,0.1322305,82382.0,82381.0,0.1218]
[1741543315778,0.1322305,82382.0,82380.0,0.36108171]
[1741543315779,0.1213969,82381.0,82380.0,0.48248001]
[1741543315986,0.255032,82381.0,82380.0,0.48248001]
[1741543316185,0.255032,82381.0,82380.0,0.36108171]
[1741543316500,0.0108351,82381.0,82380.0,0.48248001]
[1741543316987,0.132232,82381.0,82380.0,0.60028001]
[1741543317188,0.1213969,82381.0,82380.0,0.66097191]
[1741543317486,0.1213969,82381.0,82380.0,0.2391983]
[1741543317682,0.132232,82381.0,82380.0,0.1178]
[1741543317880,0.132232,82381.0,82379.0,0.1168]
[1741543317881,0.1213983,82380.0,82379.0,0.1168]
[1741543318274,0.2449983,82380.0,82379.0,0.1078]
[1741543318481,0.2558334,82380.0,82379.0,0.1078]
[1741543318885,0.1214013,82378.0,82377.0,0.00018207]
[1741543319588,0.2450013,82378.0,82377.0,0.00018207]
[1741543319985,0.2558364,82378.0,82377.0,0.12158487]
[1741543320184,0.2558364,82378.0,82377.0,0.00018207]
[1741543320779,0.2558364,82378.0,82377.0,0.12158487]
[1741543320979,0.2558364,82378.0,82377.0,0.00018207]
[1741543321689,0.0108351,82378.0,82377.0,0.12158487]
[1741543321882,0.0108351,82378.0,82377.0,0.72118487]
[1741543322390,0.1238,82391.0,82377.0,0.72118487]
[1741543322391,0.0108351,82390.0,82383.0,0.0606969]
[1741543322583,0.1213851,82389.0,82385.0,0.3608]
[1741543322780,0.1322187,82390.0,82389.0,0.1213851]
[1741543322988,0.0108351,82390.0,82389.0,0.1213851]
[1741543323192,0.1322187,82390.0,82389.0,0.1213851]
[1741543323388,0.0108351,82390.0,82389.0,0.1213851]
[1741543323779,0.0606931,82389.0,82386.0,0.2994946]
[1741543324091,0.18224947,82394.0,82393.0,0.1213792]
[1741543324281,0.06087097,82394.0,82386.0,0.2388]
[1741543324592,0.0606984,82381.0,82371.0,0.0607053]
[1741543324790,0.0606984,82381.0,82365.0,0.01662841]
[1741543324791,0.1214013,82378.0,82377.0,0.00018207]
[1741543325590,0.2822364,82378.0,82377.0,7e-08]
[1741543325779,0.1214367,82354.0,82353.0,0.1224]
[1741543326385,0.1214544,82342.0,82341.0,0.3608]
[1741543327287,0.1214573,82340.0,82339.0,0.48873083]
[1741543327888,0.13988999,82340.0,82339.0,0.48873083]
[1741543328085,0.24993269,82340.0,82339.0,0.48873083]
[1741543328286,0.01843269,82340.0,82339.0,0.61018963]
[1741543328588,0.13988999,82340.0,82339.0,0.48873083]
[1741543328979,0.13988999,82340.0,82339.0,0.45074136]
[1741543329688,0.13988999,82340.0,82339.0,0.3084076]
[1741543329892,0.01843269,82340.0,82333.0,0.00018207]
[1741543330088,0.4822662,82334.0,82333.0,0.00018207]
[1741543330885,0.01843269,82334.0,82333.0,0.12164967]
[1741543331092,9e-08,82334.0,82333.0,0.12164967]
[1741543331296,9e-08,82334.0,82333.0,0.23934967]
[1741543331495,0.00768831,82350.0,82349.0,0.121444]
[1741543331794,0.00768831,82350.0,82349.0,0.482244]
[1741543332395,0.12913091,82350.0,82349.0,0.482244]
[1741543332591,0.00018207,82350.0,82349.0,0.482244]
[1741543332894,0.00750624,82365.0,82364.0,0.1214219]
[1741543333100,0.12892674,82365.0,82364.0,0.3608]
[1741543333388,0.1821379,82363.0,82362.0,0.0607121]
[1741543333589,0.19083484,82380.0,82361.0,0.3608]
[1741543333805,0.17976747,82382.0,82373.0,0.1214087]
[1741543334092,0.17976747,82382.0,82373.0,0.4822087]
[1741543334295,0.22836912,82374.0,82373.0,0.3608]
[1741543334497,0.10696192,82374.0,82373.0,0.4822087]
[1741543335089,0.22836912,82374.0,82373.0,0.3608]
[1741543335292,0.22836912,82374.0,82373.0,0.4822087]
[1741543335595,0.10696192,82374.0,82373.0,0.4822087]
[1741543335796,3e-08,82377.0,82376.0,0.1214042]
[1741543335994,0.17994966,82382.0,82381.0,0.1213969]
[1741543335995,0.01560075,82382.0,82381.0,0.1213969]
[1741543336189,0.1213809,82392.0,82386.0,0.1213895]
[1741543336395,0.22535831,82403.0,82400.0,0.1213659]
[1741543336702,0.10645831,82403.0,82402.0,0.4821659]
[1741543336888,0.1213659,82402.0,82401.0,0.1234]
[1741543337195,0.2415659,82402.0,82396.0,0.3608]
[1741543337397,0.1213733,82397.0,82396.0,0.3608]
[1741543337697,0.10645831,82403.0,82402.0,0.1213659]
[1741543337906,0.05245541,82403.0,82402.0,0.4821659]
[1741543338090,0.00018207,82410.0,82406.0,0.12136]
[1741543338290,0.00182115,82420.0,82409.0,0.1213556]
[1741543338497,0.11436,82447.0,82412.0,0.3608]
[1741543338701,0.11436,82447.0,82410.0,0.23772]
[1741543338702,0.11828,82455.0,82451.0,0.1212938]
[1741543338993,0.40029844,82457.0,82451.0,0.1212938]
[1741543338994,0.36987963,82452.0,82451.0,0.1212938]
[1741543339200,0.1212953,82450.0,82449.0,0.3608]
[1741543339401,0.24858733,82452.0,82440.0,0.1146]
[1741543339598,0.1213071,82442.0,82441.0,0.00018193]
[1741543339895,0.1213071,82442.0,82441.0,0.48229043]
[1741543340096,0.1213071,82442.0,82441.0,0.36098193]
[1741543340298,0.1213071,82442.0,82441.0,0.00018193]
[1741543340497,0.28577844,82457.0,82441.0,0.00018193]
[1741543340498,0.1212936,82453.0,82452.0,0.1212898]
[1741543340802,0.0606362,82466.0,82460.0,0.1212806]
[1741543340803,0.246582,82461.0,82460.0,0.1212806]
[1741543341006,0.121282,82461.0,82460.0,0.4820806]
[1741543341310,0.1253,82471.0,82462.0,0.0606383]
[1741543341504,0.060637,82465.0,82460.0,0.3608]
[1741543341697,0.0606444,82455.0,82452.0,0.5369657]
[1741543341892,0.1212879,82455.0,82454.0,0.00018193]
[1741543342097,0.1212879,82455.0,82454.0,0.12147133]
[1741543342295,0.1212879,82455.0,82454.0,0.36098193]
[1741543343099,0.1212879,82455.0,82454.0,0.00018193]
[1741543344099,0.11568,82461.0,82454.0,0.48227133]
[1741543344300,0.0606361,82466.0,82461.0,0.1212791]
[1741543344508,0.0606372,82465.0,82464.0,0.1212732]
[1741543344702,0.1212653,82471.0,82470.0,0.1212659]
[1741543344898,0.28577844,82495.0,82470.0,0.3608]
[1741543345102,0.1212276,82497.0,82496.0,0.1212276]
[1741543345103,0.1158,82497.0,82496.0,0.1212276]
[1741543345401,0.2212218,82500.0,82499.0,0.1212232]
[1741543345606,0.1,82500.0,82499.0,0.4820232]
[1741543346100,0.2212218,82500.0,82499.0,0.3608]
[1741543346497,0.1,82500.0,82499.0,0.8428232]
[1741543346707,0.1,82500.0,82499.0,0.9587032]
[1741543347107,0.1,82500.0,82499.0,0.83748]
[1741543347302,0.2212218,82500.0,82499.0,0.83748]
[1741543347503,0.2212218,82500.0,82499.0,0.9597032]
[1741543347504,0.1,82500.0,82499.0,0.9597032]
[1741543347709,0.1,82500.0,82499.0,1.0783032]
[1741543348013,0.32150075,82520.0,82508.0,0.12121]
[1741543348310,0.1212028,82513.0,82508.0,0.59785]
[1741543348506,0.32150075,82520.0,82508.0,0.59785]
[1741543348703,0.1212047,82512.0,82508.0,0.59785]
[1741543348899,0.02103043,82509.0,82508.0,0.71355]
[1741543349200,0.1211722,82535.0,82534.0,0.1211674]
[1741543349404,0.1211722,82535.0,82534.0,0.3608]
[1741543349905,0.1224,82538.0,82526.0,0.11642181]
[1741543350109,0.01650074,82547.0,82526.0,0.11642181]
[1741543350110,0.1211821,82527.0,82526.0,0.11642181]
[1741543350613,0.1201821,82527.0,82526.0,0.11642181]
[1741543350812,0.1201821,82527.0,82526.0,0.00018181]
[1741543351014,0.1201821,82527.0,82526.0,0.36098181]
[1741543351196,0.1201821,82527.0,82526.0,0.001]
[1741543351506,0.2425821,82527.0,82526.0,0.001]
[1741543351708,0.2425821,82527.0,82526.0,0.3618]
[1741543351910,0.2425821,82527.0,82526.0,0.001]
[1741543352203,0.11744,82534.0,82533.0,0.1211733]
[1741543352404,0.1211718,82534.0,82533.0,0.3608]
[1741543352604,0.00018097,82535.0,82533.0,0.3608]
[1741543352810,0.00018097,82535.0,82534.0,0.1211718]
[1741543353115,0.00018097,82535.0,82534.0,0.2391718]
[1741543353406,0.12135137,82535.0,82534.0,0.2391718]
[1741543353614,0.12135137,82535.0,82534.0,0.118]
[1741543353911,0.00018097,82535.0,82534.0,0.2391718]
[1741543354312,0.12135137,82535.0,82534.0,0.119]
[1741543354606,0.12135137,82535.0,82534.0,0.001]
[1741543354805,0.00018097,82535.0,82534.0,0.001]
[1741543355104,0.12135137,82535.0,82534.0,0.2343718]
[1741543355309,0.12135137,82535.0,82534.0,0.001]
[1741543355512,0.1211895,82522.0,82521.0,0.1122]
[1741543355805,0.1211895,82522.0,82521.0,0.5941909]
[1741543356107,0.1211895,82522.0,82521.0,0.2333909]
[1741543356317,0.1211895,82522.0,82518.0,0.00018181]
[1741543356318,0.1211939,82519.0,82518.0,0.00018181]
[1741543356907,0.1211939,82519.0,82518.0,1e-08]
[1741543357211,0.0606018,82513.0,82512.0,0.1212041]
[1741543357504,0.1212174,82503.0,82502.0,0.4820182]
[1741543357706,0.11784,82516.0,82502.0,0.4214088]
[1741543357911,0.2424953,82518.0,82517.0,0.1211968]
[1741543358210,0.1213,82518.0,82517.0,0.1211968]
[1741543358405,0.1211953,82520.0,82519.0,0.1211924]
[1741543358604,0.1211968,82518.0,82517.0,0.1211962]
[1741543358808,0.01679414,82530.0,82517.0,0.0605978]
[1741543359013,0.0453853,98213.0,82525.0,0.121185]
[1741543359014,0.00018181,82526.0,82525.0,0.121185]
[1741543359307,0.00018181,82526.0,82525.0,0.359465]
[1741543359504,0.00018181,82526.0,82525.0,0.3762034]
[1741543359707,0.11824,82552.0,82525.0,0.2550184]
[1741543359907,0.2326547,82546.0,82545.0,0.1211557]
[1741543360208,0.1720774,82546.0,82540.0,0.12]
[1741543360414,0.1720774,82546.0,82545.0,0.1211557]
[1741543360713,0.0605657,82562.0,82556.0,0.0605687]
[1741543361006,0.00018097,82554.0,82553.0,0.0605714]
[1741543361405,0.00018097,82554.0,82553.0,0.1833714]
[1741543362108,0.12132347,82554.0,82553.0,0.2439439]
[1741543362613,0.12132347,82554.0,82553.0,0.13170473]
[1741543363099,0.12132347,82554.0,82553.0,0.00990473]
[1741543363304,0.23972347,82554.0,82553.0,0.00990473]
[1741543363711,0.00018097,82554.0,82553.0,0.00990473]
[1741543364007,0.00018097,82554.0,82553.0,0.24754863]
[1741543365407,0.00018097,82554.0,82553.0,0.24654863]
[1741543365604,0.00018097,82554.0,82553.0,0.24754863]
[1741543365806,0.00018097,82554.0,82553.0,0.12640473]
[1741543366107,0.12132347,82554.0,82553.0,0.12640473]
[1741543366301,0.12132347,82554.0,82553.0,0.00990473]
[1741543366700,0.34864983,82558.0,82553.0,0.001]
[1741543367010,0.34864983,82558.0,82532.0,0.01692701]
[1741543367011,0.0605741,82551.0,82526.0,0.01659431]
[1741543367206,0.481966,82538.0,82537.0,0.12134921]
[1741543367410,0.121166,82538.0,82537.0,0.00018181]
[1741543367707,0.481966,82538.0,82537.0,0.00018181]
[1741543368012,0.49844547,82538.0,82537.0,0.00018181]
[1741543368206,0.31278618,82538.0,82537.0,0.00018181]
[1741543368516,0.37094547,82538.0,82537.0,0.00018181]
[1741543368902,0.37094547,82538.0,82537.0,0.36098181]
[1741543369110,0.2333,82538.0,82537.0,0.48214921]
[1741543369409,0.4213759,82548.0,82538.0,0.0605824]
[1741543369611,0.1788122,82553.0,82545.0,0.3608]
[1741543369806,0.1168,82552.0,82546.0,0.1189]
[1741543370011,0.0605754,82549.0,82548.0,0.1211506]
[1741543370311,0.0605763,82548.0,82544.0,0.3608]
[1741543370515,0.1168,82552.0,82551.0,0.1211469]
[1741543370703,0.2379454,82552.0,82551.0,0.1211469]
[1741543370905,0.1214,82558.0,82557.0,0.1211381]
[1741543371217,0.2425366,82558.0,82557.0,0.1211381]
[1741543371410,0.1214,82558.0,82557.0,0.1211381]
[1741543372110,0.1211293,82563.0,82562.0,0.1816921]
[1741543372412,0.1827083,82558.0,82557.0,0.122132]
[1741543372915,0.0615688,82558.0,82557.0,0.122132]
[1741543373312,0.1815688,82558.0,82557.0,0.122132]
[1741543374016,0.1815688,82558.0,82557.0,0.001]
[1741543374311,0.2993688,82558.0,82557.0,0.001]
[1741543374702,0.2993688,82558.0,82554.0,0.00018169]
[1741543374904,0.11125921,82557.0,82554.0,0.00018169]
[1741543375102,0.11125921,82557.0,82527.0,0.64864211]
[1741543375312,0.1211806,82528.0,82527.0,0.64864211]
[1741543375506,0.0605894,82530.0,82527.0,0.64864211]
[1741543375507,0.1211781,82530.0,82528.0,0.0605897]
[1741543375703,0.1211806,82528.0,82527.0,0.76982411]
[1741543375903,0.1211806,82528.0,82527.0,0.64864211]
[1741543376110,0.1201806,82528.0,82527.0,0.64864211]
[1741543376710,0.5985006,82528.0,82527.0,0.28784211]
[1741543377309,0.25479733,82528.0,82527.0,0.28784211]
[1741543378221,0.73669733,82528.0,82527.0,0.28784211]
[1741543378622,0.61751673,82528.0,82527.0,0.40902421]
[1741543378818,0.37031673,82528.0,82522.0,0.3608]
[1741543379015,0.121188,82524.0,82523.0,0.1171]
[1741543379324,0.1211924,82520.0,82519.0,0.12137559]
[1741543379507,0.2412,82523.0,82522.0,0.1211895]
[1741543379714,0.121,82523.0,82522.0,0.1211895]
[1741543379915,0.242188,82523.0,82522.0,0.1211895]
[1741543380216,0.005,82528.0,82522.0,0.2337]
[1741543380416,0.005,82528.0,82527.0,0.1211821]
[1741543381015,0.00018129,82536.0,82535.0,0.1211704]
[1741543381321,0.0605678,82559.0,82544.0,0.1211572]
[1741543381520,0.1211368,82558.0,82557.0,0.1211366]
[1741543381726,0.1211368,82558.0,82555.0,0.3608]
[1741543381727,0.1211395,82556.0,82555.0,0.3608]
[1741543382020,0.17844876,82554.0,82553.0,0.1171]
[1741543382220,0.29959126,82554.0,82553.0,0.2382406]
[1741543382718,0.29959126,82554.0,82553.0,0.3553606]
[1741543382719,0.17844876,82554.0,82553.0,0.3553606]
[1741543382919,0.17844876,82554.0,82553.0,0.4744606]
[1741543383310,0.18344876,82554.0,82553.0,0.4754606]
[1741543383719,0.30459126,82554.0,82553.0,0.4754606]
[1741543384115,0.30459126,82554.0,82553.0,0.001]
[1741543384926,0.1211542,82546.0,82545.0,0.00018169]
[1741543385425,0.1211542,82546.0,82545.0,0.48213739]
[1741543385623,0.1817272,82552.0,82551.0,0.1211454]
[1741543385816,0.1211527,82547.0,82546.0,0.3639524]
[1741543386122,0.18344876,82554.0,82553.0,0.1211439]
[1741543386341,0.17844876,82554.0,82553.0,0.4819439]
[1741543386626,0.121123,82568.0,82567.0,0.1211234]
[1741543387122,0.0605612,82568.0,82566.0,0.3608]
[1741543387324,0.1816831,82568.0,82567.0,0.2428]
[1741543387517,0.1816831,82568.0,82567.0,0.3639234]
[1741543388126,0.1816831,82568.0,82567.0,0.2428]
[1741543388323,0.0605543,82578.0,82567.0,0.2428]
[1741543388622,0.3608,82581.0,82578.0,0.1211054]
[1741543388825,0.17844876,82590.0,82580.0,0.3608]
[1741543389119,0.1816467,82586.0,82585.0,0.1210966]
[1741543389312,0.29953876,82590.0,82589.0,0.1210911]
[1741543389515,0.1210941,82587.0,82586.0,0.117]
[1741543389813,0.29953876,82590.0,82589.0,0.1210911]
[1741543390013,0.1210941,82587.0,82586.0,0.2380948]
[1741543390214,0.1210941,82587.0,82586.0,0.3558548]
[1741543390815,0.1210941,82587.0,82586.0,0.25221677]
[1741543391018,0.1210941,82587.0,82586.0,7e-08]
[1741543391320,0.1211058,82579.0,82575.0,0.1211106]
[1741543391626,0.001,82586.0,82581.0,0.0605513]
[1741543391821,0.1220955,82586.0,82585.0,0.3608]
[1741543392026,0.1211014,82582.0,82581.0,0.11784]
[1741543392224,0.1220941,82587.0,82586.0,0.001]
[1741543392523,0.1220941,82587.0,82586.0,0.1156]
[1741543392928,0.1210941,82587.0,82586.0,0.1146]
[1741543393135,0.1210941,82587.0,82579.0,0.1146]
[1741543393136,0.1211043,82580.0,82579.0,0.1146]
[1741543393428,0.1211058,82579.0,82578.0,9e-08]
[1741543393624,0.06056,82570.0,82567.0,0.65783728]
[1741543393819,0.1211219,82568.0,82567.0,0.61369941]
[1741543394221,0.3570219,82568.0,82567.0,0.61369941]
[1741543394827,0.3560219,82568.0,82567.0,0.61369941]
[1741543395029,0.2432219,82568.0,82567.0,0.61369941]
[1741543395335,0.1367124,82583.0,82573.0,0.1211146]